bitfinex-derivatives/quotes_ETHF0:USTF0_20210111
["timestamp","ask_amount","ask_price","bid_price","bid_amount"]
[1610324846499,20.94942724,1230.4,1230.3,4.00959]
[1610324846901,4.00959,1230.4,1230.3,4.00959]
[1610324847101,22.94446767,1230.4,1230.3,4.00959]
[1610324847503,22.94446767,1230.4,1229.6,2.2463]
[1610324847705,22.94446767,1230.4,1229.5,64.6098]
[1610324847909,16.94341962,1230.1,1229.5,64.6098]
[1610324848507,4.00959,1230.0,1229.9,4.00959]
[1610324848707,16.94341962,1230.1,1229.9,4.00959]
[1610324848907,16.94369762,1230.0,1229.9,4.00959]
[1610324850207,16.94346693,1230.1,1229.9,4.00959]
[1610324850607,20.95305693,1230.1,1229.9,4.00959]
[1610324851009,16.9438885,1230.0,1229.5,64.6098]
[1610324851612,16.94653903,1229.9,1229.5,64.6098]
[1610324852008,16.94772079,1229.8,1229.5,64.6098]
[1610324852408,16.94848396,1229.7,1229.5,64.6098]
[1610324853008,16.94871281,1229.8,1229.5,64.6098]
[1610324854510,4.00959,1229.6,1229.5,64.6098]
[1610324854709,20.96019605,1229.6,1229.5,64.6098]
[1610324855109,4.00959,1229.6,1229.5,64.6098]
[1610324855308,20.96138002,1229.6,1229.5,64.6098]
[1610324855709,4.00959,1229.6,1229.5,64.6098]
[1610324855910,20.96072164,1229.6,1229.5,64.6098]
[1610324856611,4.00959,1229.6,1229.5,64.6098]
[1610324856811,16.95122847,1229.7,1229.5,64.6098]
[1610324857211,16.95122847,1229.7,1229.2,4.00959]
[1610324857411,16.94924114,1229.8,1229.2,4.00959]
[1610324857611,2.4245,1229.9,1229.2,4.00959]
[1610324857612,16.94811123,1229.9,1229.2,4.00959]
[1610324858612,16.94811123,1229.9,1229.3,1.24379941]
[1610324859012,16.95100186,1229.7,1229.3,1.24379941]
[1610324859412,16.95326379,1229.6,1229.3,1.24379941]
[1610324859812,16.95585654,1229.4,1228.9,60.4552]
[1610324860013,18.95183616,1229.4,1228.9,60.4552]
[1610324860413,16.95751175,1229.2,1228.9,60.4552]
[1610324860614,4.00959,1229.0,1228.9,60.4552]
[1610324866517,34.00959,1229.0,1227.0,4.00959]
[1610324866916,5.8317,1228.9,1227.0,4.00959]
[1610324867117,16.97528585,1227.9,1227.0,4.00959]
[1610324867316,16.9755869,1227.8,1225.7,10.216]
[1610324867916,16.97800131,1227.7,1225.7,10.216]
[1610324868116,16.9799135,1227.4,1225.7,3.405]
[1610324868316,18.4997135,1227.4,1225.8,1.24633231]
[1610324868516,4.00959,1226.3,1226.2,4.00959]
[1610324868716,4.00959,1226.3,1225.8,1.24633231]
[1610324869918,4.00959,1226.3,1225.0,3.405]
[1610324869919,34.00959,1226.3,1225.1,1.24708455]
[1610324870522,4.00959,1225.2,1225.1,1.24708455]
[1610324871323,4.00959,1225.2,1224.7,1.24828066]
[1610324871522,6.50149,1225.2,1224.7,1.24828066]
[1610324872623,4.00959,1224.8,1224.4,4.00959]
[1610324873225,4.00959,1224.8,1223.9,3.405]
[1610324873425,4.00959,1224.8,1223.2,3.405]
[1610324874529,4.00959,1224.8,1224.2,4.00959]
[1610324874928,4.00959,1224.8,1224.2,5.54849]
[1610324875528,4.00959,1224.8,1224.2,1.5389]
[1610324876734,4.00959,1224.6,1224.2,1.5389]
[1610324876932,4.00959,1224.6,1224.1,4.00959]
[1610324877232,2.1882,1224.9,1224.1,4.00959]
[1610324878035,2.4919,1225.2,1224.1,4.00959]
[1610324878235,15.00452206,1225.4,1224.1,4.00959]
[1610324878633,15.00323886,1225.7,1225.3,4.00959]
[1610324879034,15.00064085,1225.8,1225.3,5.70269]
[1610324879235,14.99900075,1225.9,1225.3,5.70269]
[1610324879633,14.99726503,1226.1,1225.3,5.70269]
[1610324880033,16.99422407,1226.5,1225.3,5.70269]
[1610324880433,16.99331071,1226.7,1225.3,5.70269]
[1610324880635,16.98986691,1226.8,1226.6,4.00959]
[1610324881134,4.00959,1226.9,1226.6,4.00959]
[1610324881334,16.98822191,1227.0,1226.6,4.00959]
[1610324882534,16.98741313,1227.1,1226.6,4.00959]
[1610324882734,5.95319,1226.8,1226.6,4.00959]
[1610324883135,5.95319,1226.8,1225.3,11.9091]
[1610324883336,5.95319,1226.8,1225.3,8.5041]
[1610324883837,22.94529634,1226.8,1225.3,8.5041]
[1610324884239,16.99437142,1226.7,1225.3,8.5041]
[1610324884438,16.9956018,1226.6,1225.3,8.5041]
[1610324884638,21.0051918,1226.6,1225.3,8.5041]
[1610324885144,4.00959,1226.6,1225.3,8.5041]
[1610324885344,4.00959,1226.6,1225.8,67.0244]
[1610324886745,4.00959,1226.6,1226.3,4.00959]
[1610324886944,4.00959,1226.6,1225.9,1.24738168]
[1610324887745,16.99479752,1226.7,1225.9,1.24738168]
[1610324888144,18.93606313,1226.8,1225.9,1.24738168]
[1610324888344,1.9436,1226.8,1225.9,1.24738168]
[1610324888544,16.99208364,1226.9,1225.9,1.24738168]
[1610324888744,21.00167364,1226.9,1226.6,4.00959]
[1610324888946,16.99208364,1226.9,1226.6,4.00959]
[1610324889445,16.98943977,1227.0,1226.6,4.00959]
[1610324889646,16.98681501,1227.1,1226.6,5.99249]
[1610324890051,16.98449803,1227.4,1226.6,5.99249]
[1610324890245,16.98263623,1227.5,1226.6,5.99249]
[1610324890645,16.98048815,1227.7,1227.4,4.00959]
[1610324891046,16.97991632,1227.8,1227.4,4.00959]
[1610324891247,16.97794115,1228.0,1227.4,4.00959]
[1610324892346,71.22374097,1228.1,1227.4,4.00959]
[1610324892749,54.2487,1228.1,1228.0,4.00959]
[1610324894648,16.97336397,1228.2,1228.0,4.00959]
[1610324894848,16.9727741,1228.3,1228.0,4.00959]
[1610324895548,16.97255243,1228.2,1228.0,4.00959]
[1610324895749,16.97065807,1228.5,1228.0,4.00959]
[1610324896650,16.97065807,1228.5,1228.4,4.00959]
[1610324896850,16.97065807,1228.5,1227.9,2.2705]
[1610324897051,16.97036582,1228.4,1227.9,2.2705]
[1610324897450,16.97036582,1228.4,1227.3,1.5478]
[1610324897451,16.97249981,1228.2,1227.3,1.5478]
[1610324897651,2.2279,1228.5,1227.0,2.2968]
[1610324897652,16.97573026,1228.0,1227.0,2.2968]
[1610324897850,18.77663026,1228.0,1226.6,1.9829]
[1610324898052,16.97736588,1227.9,1226.1,3.405]
[1610324898251,16.97736588,1227.9,1226.2,30.0]
[1610324898452,16.97736588,1227.9,1226.2,32.468]
[1610324898653,16.97736588,1227.9,1227.8,4.00959]
[1610324898853,16.97786289,1228.0,1227.8,4.00959]
[1610324899053,16.9759957,1228.1,1227.8,5.99779]
[1610324900351,18.97240566,1228.4,1227.8,4.00959]
[1610324900352,16.97601877,1228.2,1227.8,4.00959]
[1610324900552,16.97636744,1228.0,1227.8,4.00959]
[1610324900954,16.97649023,1228.1,1227.8,4.00959]
[1610324901152,16.97649023,1228.1,1227.8,5.77909]
[1610324901353,16.97329621,1228.3,1227.8,5.77909]
[1610324901756,16.97197512,1228.4,1227.8,5.77909]
[1610324901953,16.96995909,1228.6,1227.8,5.77909]
[1610324902754,16.96721197,1228.7,1228.5,4.00959]
[1610324902954,16.96666902,1228.8,1228.5,5.57049]
[1610324903357,16.96792619,1228.7,1228.5,5.57049]
[1610324903560,16.96921054,1228.6,1228.5,5.57049]
[1610324903958,18.96529171,1228.8,1228.5,5.57049]
[1610324904563,18.96418784,1228.7,1228.5,1.5609]
[1610324904764,4.00959,1228.6,1228.5,1.5609]
[1610324905165,22.97596366,1228.6,1228.5,1.5609]
[1610324905365,4.00959,1228.6,1228.5,1.5609]
[1610324905764,4.00959,1228.6,1228.0,67.4159]
[1610324906165,16.97357498,1228.1,1228.0,67.4159]
[1610324906364,16.97318006,1228.2,1228.0,67.4159]
[1610324906768,16.97318006,1228.2,1228.1,4.00959]
[1610324906966,16.97292322,1228.3,1228.1,6.38149]
[1610324907367,16.97103593,1228.4,1228.1,6.38149]
[1610324907767,16.97082211,1228.5,1228.1,6.38149]
[1610324908469,16.96910132,1228.7,1228.1,6.38149]
[1610324908669,16.96751314,1228.8,1228.6,4.00959]
[1610324908869,16.96751314,1228.8,1228.6,5.94629]
[1610324909072,16.96527499,1228.9,1228.6,5.94629]
[1610324909269,16.96446913,1229.0,1228.6,5.94629]
[1610324909670,16.96234142,1229.1,1228.6,5.94629]
[1610324909874,16.96096723,1229.2,1228.6,5.94629]
[1610324910273,16.9598358,1229.3,1228.6,5.94629]
[1610324910571,16.9595371,1229.4,1228.6,5.94629]
[1610324910772,16.9595371,1229.4,1229.3,4.00959]
[1610324910972,16.9595371,1229.4,1229.3,6.15899]
[1610324911272,16.95724805,1229.5,1229.3,6.15899]
[1610324911673,16.95695043,1229.6,1229.3,6.15899]
[1610324912072,16.95611579,1229.7,1229.3,6.15899]
[1610324912474,16.95530034,1229.8,1229.3,6.15899]
[1610324912673,16.95530034,1229.8,1229.7,4.00959]
[1610324913074,16.95216962,1229.9,1229.7,5.94459]
[1610324913278,26.94915094,1230.0,1229.7,5.94459]
[1610324913676,10.0,1230.0,1229.7,5.94459]
[1610324914676,10.0,1230.0,1229.9,4.00959]
[1610324916480,10.0,1230.0,1229.7,1.935]
[1610324916680,4.00959,1229.9,1229.7,5.94459]
[1610324917281,18.94891497,1229.8,1229.7,5.94459]
[1610324918080,4.00959,1229.9,1229.7,1.935]
[1610324918480,4.00959,1229.9,1228.6,1.9367]
[1610324918680,4.00959,1229.4,1229.0,4.00959]
[1610324919080,4.00959,1229.4,1228.1,2.3719]
[1610324919480,4.00959,1229.4,1227.1,30.0]
[1610324919481,22.96653569,1229.4,1227.1,30.0]
[1610324919881,18.95997713,1229.2,1227.1,30.0]
[1610324920283,18.95997713,1229.2,1227.2,1.24509475]
[1610324920484,18.96137665,1229.0,1227.2,1.24509475]
[1610324920682,4.00959,1228.3,1228.2,4.00959]
[1610324921082,4.00959,1228.3,1227.2,3.49999475]
[1610324921682,4.00959,1228.3,1227.2,2.2549]
[1610324922684,18.97071959,1228.4,1227.8,4.00959]
[1610324922883,18.97071959,1228.4,1227.2,2.2549]
[1610324923085,18.97071959,1228.4,1227.3,1.24596736]
[1610324923484,18.97386376,1228.1,1227.3,1.24596736]
[1610324923683,18.97614499,1228.0,1227.3,1.24596736]
[1610324924084,18.97815667,1227.9,1227.3,1.24596736]
[1610324924286,18.97815667,1227.9,1226.6,64.8011]
[1610324924487,18.98012134,1227.8,1226.6,64.8011]
[1610324924684,18.9816338,1227.7,1226.8,4.00959]
[1610324925084,18.98258732,1227.5,1226.8,4.00959]
[1610324925284,18.98188727,1227.6,1226.8,4.00959]
[1610324925684,18.97986803,1227.8,1226.8,4.00959]
[1610324926085,18.97675638,1227.9,1226.8,4.00959]
[1610324926287,18.97677269,1228.0,1226.8,4.00959]
[1610324926485,18.97609217,1228.1,1226.8,4.00959]
[1610324926685,4.00959,1227.5,1227.4,4.00959]
[1610324926884,4.00959,1227.5,1226.7,2.284]
[1610324928490,18.97934333,1227.8,1226.7,2.284]
[1610324928689,22.98893333,1227.8,1227.4,4.00959]
[1610324929091,4.00959,1227.8,1227.4,4.00959]
[1610324930090,18.97771742,1228.0,1227.4,4.00959]
[1610324930290,18.97523023,1228.1,1227.4,4.00959]
[1610324930491,18.97523023,1228.1,1227.4,5.87889]
[1610324930692,20.87081638,1228.2,1227.4,5.87889]
[1610324930892,22.98091438,1228.4,1228.1,4.00959]
[1610324931092,22.98091438,1228.4,1227.4,1.8693]
[1610324931892,18.97354273,1228.2,1227.4,1.8693]
[1610324932092,20.75594273,1228.2,1227.4,1.8693]
[1610324932298,18.97644361,1228.1,1227.4,1.8693]
[1610324932499,18.97892354,1227.9,1227.1,2.2589]
[1610324932899,4.00959,1227.2,1227.1,2.2589]
[1610324933098,4.00959,1227.2,1226.7,6.29359]
[1610324933499,4.00959,1227.2,1226.7,2.284]
[1610324933698,4.00959,1227.2,1226.2,51.0637]
[1610324934301,18.98886118,1227.1,1226.2,51.0637]
[1610324934799,18.9898025,1227.2,1226.5,4.00959]
[1610324934999,19.98801199,1227.5,1225.6,5.4674]
[1610324935000,18.98950455,1227.1,1225.6,5.4674]
[1610324935200,18.98996758,1227.2,1225.6,5.4674]
[1610324935601,18.99092738,1227.1,1225.6,5.4674]
[1610324936201,2.4784,1227.3,1225.6,5.4674]
[1610324936202,18.99123693,1227.0,1225.6,5.4674]
[1610324936404,20.60063693,1227.0,1225.6,5.4674]
[1610324936602,18.99305279,1226.9,1225.6,5.4674]
[1610324936804,18.99436682,1226.8,1225.9,4.00959]
[1610324937204,18.99519354,1226.7,1225.9,4.00959]
[1610324937404,21.07669354,1226.7,1225.7,1.24752453]
[1610324938405,21.07669354,1226.7,1225.6,2.0624]
[1610324938805,4.00959,1226.4,1226.3,4.00959]
[1610324939006,21.07669354,1226.7,1226.3,4.00959]
[1610324939205,2.0815,1226.7,1226.3,4.00959]
[1610324940208,14.9919442,1226.7,1226.3,5.53889]
[1610324940408,14.98997986,1226.9,1226.3,5.53889]
[1610324940808,14.98960677,1227.0,1226.7,4.00959]
[1610324941210,14.98960677,1227.0,1226.7,5.59229]
[1610324941409,14.99079169,1226.8,1226.7,5.59229]
[1610324941610,14.99079169,1226.8,1226.7,1.5827]
[1610324941810,14.99054171,1226.9,1226.7,1.5827]
[1610324942009,14.99080897,1226.8,1226.7,1.5827]
[1610324942409,14.99090832,1226.9,1226.7,1.5827]
[1610324942609,14.99090832,1226.9,1226.3,1.5293]
[1610324942809,4.00959,1226.4,1226.3,1.5293]
[1610324943209,4.00959,1226.4,1226.2,4.00959]
[1610324943410,4.00959,1226.4,1225.9,1.807]
[1610324943612,19.0049638,1226.4,1225.9,1.807]
[1610324943811,19.0049638,1226.4,1225.6,50.9888]
[1610324944011,14.99606616,1226.3,1225.6,50.9888]
[1610324944812,4.00959,1225.7,1225.6,50.9888]
[1610324945813,34.00959,1225.7,1225.6,50.9888]
[1610324946216,35.80339,1225.7,1225.6,50.9888]
[1610324946814,35.80339,1225.7,1225.6,48.9264]
[1610324947014,35.80339,1225.7,1223.7,4.00959]
[1610324947015,63.7656,1225.6,1223.7,4.00959]
[1610324947215,30.0,1225.5,1223.7,4.00959]
[1610324947415,17.01797608,1224.8,1223.7,4.00959]
[1610324947815,17.01943846,1224.7,1223.7,4.00959]
[1610324948016,47.01943846,1224.7,1223.5,52.4939]
[1610324948216,17.02035749,1224.6,1223.5,52.4939]
[1610324948417,17.02088793,1224.5,1223.5,52.4939]
[1610324948717,19.32208793,1224.5,1223.5,52.4939]
[1610324948915,4.00959,1223.6,1223.5,52.4939]
[1610324949716,17.0216673,1224.4,1223.5,52.4939]
[1610324950118,17.02175416,1224.3,1223.5,52.4939]
[1610324950316,17.02175416,1224.3,1223.5,54.3886]
[1610324950517,17.02259855,1224.4,1223.5,54.3886]
[1610324950718,17.01844294,1224.7,1223.5,54.3886]
[1610324950919,17.01844294,1224.7,1224.3,4.00959]
[1610324951119,17.0171296,1224.9,1224.3,4.00959]
[1610324951320,2.4964,1225.1,1224.3,4.00959]
[1610324951321,19.51021358,1225.1,1224.3,4.00959]
[1610324951520,17.01381358,1225.1,1224.3,6.32869]
[1610324951719,5.9196,1225.6,1224.3,6.32869]
[1610324951720,17.01134621,1225.3,1224.3,6.32869]
[1610324952119,17.01182782,1225.4,1224.3,2.3191]
[1610324952319,17.01240238,1225.3,1224.3,2.3191]
[1610324952720,17.01370932,1225.2,1224.3,2.3191]
[1610324952924,17.01432985,1225.1,1224.5,4.00959]
[1610324953124,19.01622985,1225.1,1224.5,4.00959]
[1610324953325,17.01481089,1225.0,1224.5,4.00959]
[1610324953525,17.01481089,1225.0,1224.0,1.5388]
[1610324953928,19.01623821,1225.1,1224.0,1.5388]
[1610324954326,2.0019,1225.1,1224.0,1.5388]
[1610324954526,17.01044446,1225.3,1224.0,1.5388]
[1610324954927,17.00907157,1225.6,1225.2,4.00959]
[1610324955326,17.00681796,1225.7,1225.2,4.00959]
[1610324955525,17.00681796,1225.7,1225.2,5.68199]
[1610324955926,17.00306491,1226.0,1225.2,5.68199]
[1610324956326,17.00201922,1226.2,1225.2,5.68199]
[1610324956727,71.24504061,1226.1,1225.2,5.68199]
[1610324956926,71.24504061,1226.1,1225.8,4.00959]
[1610324957327,71.24504061,1226.1,1225.6,2.3976]
[1610324957726,17.0042387,1225.9,1225.6,2.3976]
[1610324957926,17.00529158,1225.8,1225.6,2.3976]
[1610324958127,17.00529158,1225.8,1225.2,1.6724]
[1610324958327,17.00616697,1225.7,1225.2,1.6724]
[1610324958928,4.00959,1225.4,1225.2,5.68199]
[1610324959530,17.00616697,1225.7,1225.2,1.6724]
[1610324960331,17.0037342,1226.0,1225.2,1.6724]
[1610324960529,17.0037342,1226.0,1224.9,1.6088]
[1610324960731,17.00362177,1226.1,1224.6,56.1927]
[1610324960931,17.00221306,1226.2,1226.0,4.00959]
[1610324961331,17.0025537,1226.1,1226.0,4.00959]
[1610324961931,19.00527261,1226.2,1225.4,1.6284]
[1610324962231,17.00548196,1225.9,1225.4,1.6284]
[1610324962834,4.00959,1225.5,1225.4,1.6284]
[1610324964631,21.02131934,1225.5,1225.4,1.6284]
[1610324964831,4.00959,1225.5,1225.4,1.6284]
[1610324965231,4.00959,1225.5,1225.0,4.00959]
[1610324965633,17.01291815,1225.3,1225.0,4.00959]
[1610324965834,4.00959,1225.5,1225.0,4.00959]
[1610324965835,17.01200482,1225.4,1225.0,4.00959]
[1610324966032,17.01200482,1225.4,1225.0,6.39689]
[1610324966634,17.00842307,1225.8,1225.0,6.39689]
[1610324966836,17.00792643,1225.9,1225.0,6.39689]
[1610324967035,17.00792643,1225.9,1225.7,4.00959]
[1610324967235,17.00538695,1226.0,1225.7,4.00959]
[1610324967634,19.16022475,1226.2,1225.7,4.00959]
[1610324967835,2.1574,1226.2,1225.7,4.00959]
[1610324968035,17.00148716,1226.3,1225.7,4.00959]
[1610324968239,67.24289551,1226.4,1225.7,6.37979]
[1610324968438,50.2423,1226.4,1225.7,6.37979]
[1610324969038,50.2423,1226.4,1226.3,4.00959]
[1610324969238,50.2423,1226.4,1226.3,6.51459]
[1610324970040,16.9913092,1227.1,1226.3,6.51459]
[1610324970839,16.98955375,1227.2,1226.3,6.51459]
[1610324971039,16.98955375,1227.2,1227.0,4.00959]
[1610324971240,16.98867764,1227.3,1227.0,6.00759]
[1610324972739,16.98946688,1227.2,1227.0,6.00759]
[1610324973140,16.99105666,1227.1,1227.0,6.00759]
[1610324973540,22.99900675,1227.3,1227.0,1.998]
[1610324973740,22.99900675,1227.3,1226.6,2.0595]
[1610324973940,18.98966296,1227.2,1226.6,2.0595]
[1610324974241,16.99171272,1227.0,1226.6,2.0595]
[1610324974940,16.99171272,1227.0,1226.9,4.00959]
[1610324975542,16.99045192,1227.1,1226.9,4.00959]
[1610324975741,16.99045192,1227.1,1226.6,2.0595]
[1610324976141,16.98948449,1227.2,1226.6,2.0595]
[1610324976542,16.98879072,1227.3,1226.6,2.0595]
[1610324976942,16.98879072,1227.3,1227.2,4.00959]
[1610324977743,16.98586063,1227.4,1227.2,4.00959]
[1610324978142,16.98314047,1227.6,1227.2,6.49969]
[1610324978344,16.98129835,1227.8,1227.2,6.49969]
[1610324978944,16.98129835,1227.8,1227.7,4.00959]
[1610324979146,16.97854619,1227.9,1227.7,4.00959]
[1610324979747,16.97700476,1228.0,1227.7,4.00959]
[1610324980548,16.97475536,1228.1,1227.7,4.00959]
[1610324981054,16.97102156,1228.4,1228.0,4.00959]
[1610324981253,16.96911491,1228.5,1228.0,5.87709]
[1610324981653,16.96714372,1228.6,1228.0,5.87709]
[1610324982053,66.4347,1229.6,1228.0,5.87709]
[1610324982054,16.96608846,1228.7,1228.0,5.87709]
[1610324982254,16.965831,1228.8,1228.0,5.87709]
[1610324982655,16.96582415,1228.9,1228.0,5.87709]
[1610324983057,16.96582415,1228.9,1228.8,4.00959]
[1610324983858,16.96323968,1229.0,1228.8,4.00959]
[1610324984257,16.96201614,1229.1,1228.8,4.00959]
[1610324984657,16.96048124,1229.2,1228.8,4.00959]
[1610324985058,16.96048124,1229.2,1229.1,6.28779]
[1610324986559,16.95688968,1229.5,1229.1,6.28779]
[1610324986960,16.95688968,1229.5,1229.4,4.00959]
[1610324987161,16.95688968,1229.5,1229.4,6.38049]
[1610324987560,83.390773,1229.6,1229.4,6.38049]
[1610324988060,66.4347,1229.6,1229.4,6.38049]
[1610324988763,16.95371954,1229.8,1229.4,6.38049]
[1610324988962,26.95014204,1230.0,1229.7,4.00959]
[1610324989161,26.95014204,1230.0,1229.7,5.77709]
[1610324989361,10.0,1230.0,1229.7,5.77709]
[1610324990964,10.0,1230.0,1229.9,4.00959]
[1610324994569,0.3517,1230.0,1229.9,4.00959]
[1610324995171,16.93706716,1231.0,1229.9,4.00959]
[1610324996073,16.9353731,1231.1,1229.9,4.00959]
[1610324996874,18.92850826,1231.2,1229.9,4.00959]
[1610324997073,18.92850826,1231.2,1231.1,4.00959]
[1610324998676,18.92784552,1231.3,1231.1,4.00959]
[1610324999975,18.92214128,1231.4,1231.1,4.00959]
[1610325000676,18.92497164,1231.3,1231.1,4.00959]
[1610325001077,18.92501417,1231.2,1231.1,4.00959]
[1610325001685,18.92357634,1231.3,1231.1,4.00959]
[1610325002084,18.9201072,1231.6,1231.1,4.00959]
[1610325002384,19.91313589,1232.1,1231.1,4.00959]
[1610325003185,19.91313589,1232.1,1232.0,4.00959]
[1610325003384,4.00959,1232.3,1232.0,4.00959]
[1610325003985,20.90890349,1232.6,1232.0,4.00959]
[1610325004286,19.91217089,1232.2,1232.0,4.00959]
[1610325004588,1.7226,1232.2,1232.0,4.00959]
[1610325005790,2.0525,1232.5,1232.0,4.00959]
[1610325006389,19.905319,1232.6,1232.0,4.00959]
[1610325006390,19.905319,1232.6,1232.0,6.49309]
[1610325006589,19.90362342,1232.7,1232.0,6.49309]
[1610325006790,54.7795,1232.8,1232.0,6.49309]
[1610325007090,54.7795,1232.8,1232.7,4.00959]
[1610325007491,19.89861036,1233.1,1232.7,5.84159]
[1610325007892,19.89347215,1233.4,1232.7,5.84159]
[1610325008092,19.89270576,1233.6,1232.7,5.84159]
[1610325008791,19.89307291,1233.4,1232.7,5.84159]
[1610325009192,19.8927451,1233.5,1233.3,4.00959]
[1610325009794,19.89075369,1233.6,1233.3,4.00959]
[1610325010197,19.8878182,1233.9,1233.3,4.00959]
[1610325010395,19.88538489,1234.1,1233.3,4.00959]
[1610325010798,74.68100801,1234.3,1233.3,4.00959]
[1610325011196,54.7981,1234.3,1234.2,4.00959]
[1610325012000,54.7981,1234.3,1234.2,6.40429]
[1610325013301,54.7981,1234.3,1234.2,4.00959]
[1610325016903,19.87160535,1234.8,1234.2,4.00959]
[1610325017102,19.87160535,1234.8,1234.7,4.00959]
[1610325017402,21.91895273,1234.9,1234.7,4.00959]
[1610325017702,2.0482,1234.9,1234.7,4.00959]
[1610325018802,21.91768465,1234.9,1234.7,4.00959]
[1610325019204,2.0482,1234.9,1234.7,4.00959]
[1610325021307,20.86660975,1235.3,1234.7,4.00959]
[1610325021508,19.87232827,1234.8,1234.7,4.00959]
[1610325021708,19.87084941,1234.9,1234.7,4.00959]
[1610325022109,19.8663066,1235.1,1234.7,4.00959]
[1610325022511,20.85800832,1236.0,1234.7,4.00959]
[1610325022912,80.4401072,1236.3,1234.7,4.00959]
[1610325023112,59.588,1236.3,1236.2,4.00959]
[1610325024312,59.588,1236.3,1235.0,2.0434]
[1610325024712,1.5727,1236.3,1235.0,2.0434]
[1610325024912,22.42515583,1236.3,1235.0,2.0434]
[1610325025112,22.42515583,1236.3,1236.2,4.00959]
[1610325025912,1.5727,1236.3,1236.2,4.00959]
[1610325026612,7.03780084,1236.3,1236.2,4.00959]
[1610325028313,1.5727,1236.3,1236.2,4.00959]
[1610325028513,25.45333491,1236.9,1236.2,4.00959]
[1610325028714,4.6152,1236.9,1236.2,4.00959]
[1610325029114,4.6152,1236.9,1236.8,4.00959]
[1610325031013,10.0785482,1236.9,1236.8,4.00959]
[1610325033817,4.6152,1236.9,1236.8,4.00959]
[1610325036219,6.7377,1236.9,1236.8,4.00959]
[1610325036622,12.20100085,1236.9,1236.8,4.00959]
[1610325037420,12.20100085,1236.9,1236.1,45.7805]
[1610325039221,4.00959,1236.5,1236.1,45.7805]
[1610325039420,6.24159,1236.5,1236.1,45.7805]
[1610325039620,5.24159,1236.5,1236.1,45.7805]
[1610325040621,2.232,1236.5,1236.1,45.7805]
[1610325041020,5.46536957,1236.4,1236.1,45.7805]
[1610325041221,5.46536957,1236.4,1236.3,4.00959]
[1610325041622,5.46536957,1236.4,1236.1,45.7805]
[1610325043325,5.46536957,1236.4,1236.3,4.00959]
[1610325044628,5.46536957,1236.4,1236.1,45.7805]
[1610325045126,5.46536957,1236.4,1234.7,1.765]
[1610325045328,4.00959,1236.0,1234.7,1.765]
[1610325045525,6.51689,1236.0,1234.7,1.765]
[1610325045726,2.5073,1236.0,1234.7,1.765]
[1610325046726,2.5073,1236.0,1233.1,13.59]
[1610325047227,2.5073,1236.0,1235.9,4.00959]
[1610325048429,2.232,1236.5,1235.9,4.00959]
[1610325048629,6.7377,1236.9,1235.9,4.00959]
[1610325049229,6.7377,1236.9,1236.8,4.00959]
[1610325051131,12.20040318,1236.9,1236.8,4.00959]
[1610325052332,12.20040318,1236.9,1235.7,1.5843]
[1610325053233,4.00959,1236.7,1236.5,4.00959]
[1610325053432,12.20040318,1236.9,1236.5,4.00959]
[1610325053833,5.4634609,1236.8,1236.5,4.00959]
[1610325054834,6.7377,1236.9,1236.5,4.00959]
[1610325055235,5.46394057,1236.7,1235.5,65.6973]
[1610325056437,5.46335033,1236.8,1235.5,65.6973]
[1610325057337,5.46335033,1236.8,1236.7,4.00959]
[1610325057739,6.7377,1236.9,1236.7,4.00959]
[1610325059540,4.6152,1236.9,1236.7,4.00959]
[1610325061841,45.5433,1237.7,1236.7,4.00959]
[1610325063342,45.5433,1237.7,1237.6,4.00959]
[1610325063941,4.00959,1239.0,1237.6,4.00959]
[1610325064942,5.27073363,1238.9,1237.6,4.00959]
[1610325065141,7.03813363,1238.9,1237.6,4.00959]
[1610325065340,7.03813363,1238.9,1238.5,4.00959]
[1610325065540,7.03813363,1238.9,1237.0,1.6441]
[1610325066442,5.27099854,1238.8,1237.0,1.6441]
[1610325067044,11.11729854,1238.8,1237.0,1.6441]
[1610325067446,11.11729854,1238.8,1236.9,50.3235]
[1610325067447,4.00959,1238.1,1237.7,4.00959]
[1610325067645,5.93059,1238.1,1237.7,4.00959]
[1610325068444,5.93059,1238.1,1236.9,50.3235]
[1610325069144,5.27207085,1238.0,1236.9,50.3235]
[1610325069346,4.00959,1237.3,1237.0,4.00959]
[1610325069546,6.30299,1237.3,1237.0,4.00959]
[1610325069745,6.30299,1237.3,1236.9,50.3235]
[1610325071347,4.00959,1237.0,1236.9,54.33309]
[1610325071549,5.83889,1237.0,1236.9,50.3235]
[1610325072346,1.8293,1237.0,1236.9,50.3235]
[1610325073349,1.8293,1237.0,1236.9,4.00959]
[1610325074552,2.2934,1237.3,1236.9,4.00959]
[1610325074752,56.2402,1238.1,1236.9,4.00959]
[1610325074954,56.2402,1238.1,1236.9,9.45149]
[1610325075355,56.2402,1238.1,1238.0,4.00959]
[1610325076654,61.51058357,1238.1,1238.0,4.00959]
[1610325081059,56.2402,1238.1,1238.0,34.00959]
[1610325081260,54.3192,1238.1,1238.0,34.00959]
[1610325081659,2.0891,1240.2,1238.0,34.00959]
[1610325082059,2.0891,1240.2,1238.0,4.00959]
[1610325082459,2.0891,1240.2,1238.0,5.24435475]
[1610325082659,2.0891,1240.2,1238.3,48.0909]
[1610325082859,2.0891,1240.2,1238.3,49.7081]
[1610325083459,2.0891,1240.2,1240.1,4.00959]
[1610325086868,72.81693746,1242.3,1240.1,4.00959]
[1610325087466,52.8708,1242.3,1241.9,4.00959]
[1610325087666,52.8708,1242.3,1239.9,48.889]
[1610325087866,5.26249887,1242.2,1239.9,48.889]
[1610325088066,7.47449887,1242.2,1239.9,48.889]
[1610325089265,5.26210312,1242.1,1239.9,48.889]
[1610325089466,5.26210312,1242.1,1242.0,4.00959]
[1610325090570,2.212,1242.2,1242.0,4.00959]
[1610325091371,4.00959,1242.1,1241.7,4.00959]
[1610325091571,4.00959,1242.1,1240.2,1.867]
[1610325092172,9.63389,1242.1,1239.7,66.741]
[1610325093373,4.00959,1241.5,1241.4,4.00959]
[1610325093573,6.13289,1241.5,1241.4,4.00959]